[Event "94th FRA-ch Women 2019"]
[Site "Chartres"]
[Date "2019.08.25"]
[Round "10.1"]
[White "Milliet, Sophie"]
[Black "Guichard, Pauline"]
[Result "0-1"]
[ECO "C67"]
[WhiteElo "2397"]
[BlackElo "2405"]
[Annotator "NA"]
[PlyCount "130"]
[EventDate "2019.08.17"]
[EventType "tourn"]
[EventCountry "FRA"]
[SourceTitle "playchess.com"]
[Source "ChessBase"]
[SourceQuality "1"]
[TimeControl "600+5"]

1. e4 {[%emt 0:00:00]} e5 {[%emt 0:00:00]} 2. Nf3 {[%emt 0:00:00]} Nc6 {[%emt 0:00:00]} 3. Bb5 {[%emt 0:00:00]} Nf6 {[%emt 0:00:04]} 4. O-O {[%emt 0:00:02]} Nxe4 {[%emt 0:00:04]} 5. Re1 {[%emt 0:00:02]} Nd6 {[%emt 0:00:02]} 6. Nxe5 {[%emt 0:00:02]} Be7 {[%emt 0:00:04]} 7. Bf1 {[%emt 0:00:02]} O-O {[%emt 0:00:21]} 8. d4 {[%emt 0:00:56]} Nxe5 {[%emt 0:00:24]} 9. Rxe5 {[%emt 0:01:47]} Bf6 {[%emt 0:00:40]} 10. Re1 {[%emt 0:00:01]} Re8 {[%emt 0:00:03]} 11. Bf4 {[%emt 0:00:09]} Rxe1 12. Qxe1 {[%emt 0:00:01]} Ne8 {[%emt 0:02:14]} 13. Nc3 {[%emt 0:00:11]} d6 {[%emt 0:01:58]} 14. Nd5 {[%emt 0:01:07]} Be6 {[%emt 0:01:17]} 15. Nxf6+ {[%emt 0:00:05]} Qxf6 {[%emt 0:00:05]} 16. Qd2 {[%emt 0:00:22]} Qg6 {[%emt 0:00:51]} 17. d5 {[%emt 0:00:20]} Bf5 {[%emt 0:00:08]} 18. c4 {[%emt 0:00:07]} Nf6 {[%emt 0:00:01]} 19. f3 {[%emt 0:00:43]} h6 {[%emt 0:00:29]} 20. Re1 {[%emt 0:00:06]} Re8 {[%emt 0:00:08]} 21. Rxe8+ {[%emt 0:00:15]} Nxe8 {[%emt 0:00:02]} 22. Qb4 {[%emt 0:00:02]} Bd3 {[%emt 0:00:13]} 23. Qxb7 {[%emt 0:01:17]} Bxf1 {[%emt 0:00:05]} 24. Kxf1 {[%emt 0:00:01]} Qd3+ {[%emt 0:00:22]} 25. Kf2 {[%emt 0:00:01]} Qxc4 {[%emt 0:01:02]} 26. Be3 {[%emt 0:02:11]} Qc2+ {[%emt 0:00:01]} 27. Kf1 {[%emt 0:00:15]} Qd1+ {[%emt 0:00:27]} 28. Kf2 {[%emt 0:00:01]} Qc2+ {[%emt 0:00:04]} 29. Kf1 {[%emt 0:00:01]} Nf6 {[%emt 0:00:11]} 30. Qxa7 {[%emt 0:00:23]} Qb1+ {[%emt 0:00:12]} 31. Ke2 {[%emt 0:01:08]} Qxb2+ {[%emt 0:00:02]} 32. Bd2 {[%emt 0:00:01]} Qe5+ {[%emt 0:00:35]} 33. Kd1 {[%emt 0:00:27]} Nxd5 {[%emt 0:00:12]} 34. a4 {[%emt 0:00:04]} c5 {[%emt 0:00:08]} 35. a5 {[%emt 0:00:38]} c4 {[%emt 0:00:07]} 36. a6 {[%emt 0:00:05]} c3 {[%emt 0:00:06]} 37. Qb8+ {[%emt 0:00:02]} Kh7 {[%emt 0:00:05]} 38. a7 {[%emt 0:00:05]} Qd4 {[%emt 0:00:12]} 39. Qb1+ {[%emt 0:00:05]} g6 {[%emt 0:00:01]} 40. Qa2 {[%emt 0:00:09]} Qg1+ {[%emt 0:00:07]} 41. Be1 {[%emt 0:00:03]} c2+ {[%emt 0:00:08]} 42. Kxc2 {[%emt 0:00:13]} Qxg2+ {[%emt 0:00:02]} 43. Kb3 {[%emt 0:00:00]} Qxf3+ {[%emt 0:00:05]} 44. Kc4 {[%emt 0:00:00]} Nb6+ {[%emt 0:00:03]} 45. Kb5 {[%emt 0:00:01]} Na8 {[%emt 0:00:07]} 46. Bg3 {[%emt 0:00:10]} Qb7+ {[%emt 0:00:11]} 47. Kc4 {[%emt 0:00:02]} d5+ {[%emt 0:00:04]} 48. Kd4 {[%emt 0:00:03]} Nb6 {[%emt 0:00:01]} 49. Be5 {[%emt 0:00:11]} Qc6 {[%emt 0:00:07]} 50. Bb8 {[%emt 0:00:06]} h5 {[%emt 0:00:07]} 51. Qf2 {[%emt 0:00:03]} Kg8 {[%emt 0:00:07]} 52. Qf4 {[%emt 0:00:07]} Qc4+ {[%emt 0:00:04]} 53. Ke5 {[%emt 0:00:02]} Nd7+ {[%emt 0:00:02]} 54. Kd6 {[%emt 0:00:03]} Qxf4+ {[%emt 0:00:03]} 55. Kxd7 {[%emt 0:00:00]} Qa4+ {[%emt 0:00:06]} 56. Kc7 {[%emt 0:00:01]} d4 {[%emt 0:00:03]} 57. Kb7 {[%emt 0:00:01]} d3 {[%emt 0:00:02]} 58. Bf4 {[%emt 0:00:02]} Qxf4 {[%emt 0:00:03]} 59. a8=Q+ {[%emt 0:00:01]} Kh7 {[%emt 0:00:02]} 60. Qa2 {[%emt 0:00:03]} d2 {[%emt 0:00:07]} 61. Qd5 {[%emt 0:00:06]} Kg7 {[%emt 0:00:05]} 62. Qb3 {[%emt 0:00:31]} Qd4 {[%emt 0:00:10]} 63. Qd1 {[%emt 0:00:03]} Qb4+ {[%emt 0:00:09]} 64. Kc6 {[%emt 0:00:02]} Qc3+ {[%emt 0:00:01]} 65. Kd5 {[%emt 0:00:07]} Qc1 {[%emt 0:00:01]} 0-1

[Event "94th FRA-ch Women 2019"]
[Site "Chartres"]
[Date "2019.08.25"]
[Round "11.1"]
[White "Guichard, Pauline"]
[Black "Milliet, Sophie"]
[Result "1/2-1/2"]
[ECO "A37"]
[WhiteElo "2405"]
[BlackElo "2397"]
[Annotator "NA"]
[PlyCount "75"]
[EventDate "2019.08.17"]
[EventType "tourn"]
[EventCountry "FRA"]
[SourceTitle "playchess.com"]
[Source "ChessBase"]
[SourceQuality "1"]
[TimeControl "600+5"]

1. c4 {[%emt 0:00:00]} g6 {[%emt 0:00:00]} 2. g3 {[%emt 0:00:00]} Bg7 {[%emt 0:00:00]} 3. Bg2 {[%emt 0:00:01]} c5 {[%emt 0:00:08]} 4. Nc3 {[%emt 0:00:07]} Nc6 {[%emt 0:00:06]} 5. a3 {[%emt 0:00:10]} a5 {[%emt 0:00:53]} 6. Nf3 {[%emt 0:00:27]} d6 {[%emt 0:00:01]} 7. d3 {[%emt 0:00:15]} e5 {[%emt 0:00:00]} 8. Bd2 {[%emt 0:00:48]} Nge7 {[%emt 0:00:05]} 9. O-O {[%emt 0:00:06]} O-O {[%emt 0:00:01]} 10. Ne1 {[%emt 0:00:14]} Be6 {[%emt 0:00:05]} 11. Nc2 {[%emt 0:00:28]} d5 {[%emt 0:00:01]} 12. cxd5 {[%emt 0:00:01]} Nxd5 {[%emt 0:00:01]} 13. Ne3 {[%emt 0:00:02]} Nde7 {[%emt 0:01:17]} 14. Rc1 {[%emt 0:01:30]} Nd4 {[%emt 0:00:27]} 15. Nc4 {[%emt 0:01:39]} b5 {[%emt 0:00:04]} 16. Bxa8 {[%emt 0:01:04]} Qxa8 {[%emt 0:00:37]} 17. Ne3 {[%emt 0:00:14]} Bh3 {[%emt 0:01:23]} 18. f3 {[%emt 0:00:01]} Bxf1 {[%emt 0:06:21]} 19. Nxf1 {[%emt 0:00:35]} f5 {[%emt 0:00:00]} 20. a4 {[%emt 0:00:21]} b4 {[%emt 0:00:00]} 21. Nb5 {[%emt 0:00:01]} e4 {[%emt 0:00:00]} 22. Nxd4 {[%emt 0:01:34]} cxd4 {[%emt 0:00:00]} 23. Bg5 {[%emt 0:00:17]} Nd5 {[%emt 0:00:00]} 24. dxe4 {[%emt 0:00:43]} fxe4 {[%emt 0:00:00]} 25. fxe4 {[%emt 0:01:27]} Nf6 26. Bxf6 {[%emt 0:00:00]} Bxf6 {[%emt 0:00:00]} 27. Qd3 {[%emt 0:00:02]} Qa7 {[%emt 0:00:00]} 28. Nd2 {[%emt 0:00:07]} Bg5 {[%emt 0:00:50]} 29. Rf1 {[%emt 0:00:02]} Be3+ {[%emt 0:00:00]} 30. Kg2 {[%emt 0:00:01]} Bxd2 {[%emt 0:00:00]} 31. Rxf8+ Kxf8 {[%emt 0:00:00]} 32. Qxd2 {[%emt 0:00:07]} Qd7 {[%emt 0:00:00]} 33. Qf4+ {[%emt 0:00:05]} Kg8 {[%emt 0:00:00]} 34. Qb8+ {[%emt 0:00:02]} Kg7 {[%emt 0:00:02]} 35. Qe5+ {[%emt 0:00:02]} Kg8 {[%emt 0:00:19]} 36. Qb8+ {[%emt 0:00:01]} Kg7 {[%emt 0:00:05]} 37. Qe5+ {[%emt 0:00:02]} Kg8 {[%emt 0:00:09]} 38. Qd5+ 1/2-1/2